bitfinex/quotes_SOLUSD_20251024
["timestamp","ask_amount","ask_price","bid_price","bid_amount"]
[1761321704238,0.65,189.51,189.44,22.88]
[1761321704430,37.61,189.5,189.47,2.08241715]
[1761321704635,10.87647521,189.48,189.46,2.08241715]
[1761321705133,11.52647521,189.48,189.42,0.68]
[1761321705338,11.52647521,189.48,189.46,2.08241715]
[1761321705541,10.87647521,189.48,189.47,7.36029755]
[1761321705739,11.52647521,189.48,189.47,7.36029755]
[1761321706040,10.87647521,189.48,189.47,7.36029755]
[1761321707149,11.52647521,189.48,189.45,18.47453153]
[1761321707359,11.52647521,189.48,189.47,2.08241715]
[1761321707656,10.87647521,189.48,189.47,2.08241715]
[1761321708238,10.87647521,189.48,189.47,7.36029755]
[1761321708637,2.08241715,189.54,189.47,18.4725814]
[1761321708953,2.08241715,189.54,189.43,22.88]
[1761321708954,10.87647521,189.49,189.45,2.08241715]
[1761321709141,10.87647521,189.48,189.46,2.08241715]
[1761321709533,10.87647521,189.48,189.45,2.08241715]
[1761321710336,11.56647521,189.48,189.46,5.27815897]
[1761321710953,11.56647521,189.47,189.46,5.27815897]
[1761321711148,10.87647521,189.47,189.46,5.27815897]
[1761321711940,10.87647521,189.46,189.44,5.27845796]
[1761321712147,0.69,189.45,189.44,5.27845796]
[1761321712737,11.56647521,189.45,189.44,5.27845796]
[1761321712957,10.87647521,189.45,189.44,5.27845796]
[1761321714474,10.87647521,189.46,189.43,5.2789477]
[1761321714666,11.56647521,189.46,189.43,5.2789477]
[1761321714843,11.56647521,189.46,189.41,22.26]
[1761321714844,0.69,189.45,189.41,22.26]
[1761321715159,10.87647521,189.41,189.38,0.1]
[1761321715339,10.87647521,189.39,189.38,0.1]
[1761321715542,47.83647521,189.39,189.38,0.1]
[1761321715761,47.83647521,189.39,189.38,5.38038863]
[1761321716563,47.83647521,189.39,189.38,9.35212133]
[1761321716939,47.83647521,189.39,189.38,8.64212133]
[1761321717157,0.69,189.42,189.38,0.1]
[1761321717158,10.87647521,189.41,189.38,0.1]
[1761321717461,14.13820791,189.39,189.38,0.1]
[1761321717646,51.09820791,189.39,189.38,0.1]
[1761321717848,51.75820791,189.39,189.38,0.1]
[1761321718842,51.75820791,189.39,189.36,0.1]
[1761321718843,33.75647521,189.37,189.36,0.1]
[1761321719245,11.53647521,189.37,189.36,0.1]
[1761321719768,47.83647521,189.37,189.36,0.1]
[1761321720265,10.87647521,189.37,189.36,9.33267904]
[1761321720762,31.68,189.48,189.36,22.5350449]
[1761321720944,10.87647521,189.44,189.41,3.2617327]
[1761321721260,10.87647521,189.42,189.4,3.2617327]
[1761321721842,10.87647521,189.42,189.41,5.27955229]
[1761321722168,10.87647521,189.4,189.38,3.2617327]
[1761321722349,10.87647521,189.4,189.36,13.30236586]
[1761321722666,0.66,189.4,189.37,8.54216979]
[1761321723483,0.66,189.4,189.37,5.28043709]
[1761321723695,0.66,189.4,189.36,17.25409856]
[1761321723696,47.85647521,189.39,189.36,0.1]
[1761321724181,14.13820791,189.37,189.36,0.1]
[1761321724564,14.79820791,189.37,189.36,0.1]
[1761321724765,10.87647521,189.38,189.36,0.1]
[1761321725392,10.87647521,189.38,189.37,3.2617327]
[1761321725597,10.87647521,189.38,189.36,6.07084266]
[1761321725798,10.87647521,189.38,189.37,3.2617327]
[1761321725965,10.87647521,189.38,189.37,5.28066747]
[1761321726165,10.87647521,189.38,189.37,9.23240017]
[1761321726677,10.87647521,189.41,189.37,9.23240017]
[1761321726871,47.85647521,189.41,189.38,3.2617327]
[1761321727083,47.85647521,189.41,189.37,9.23240017]
[1761321727287,48.51647521,189.41,189.37,8.54240017]
[1761321727469,0.66,189.4,189.36,5.38091548]
[1761321727793,0.66,189.4,189.36,8.64264818]
[1761321728102,3.9217327,189.4,189.36,0.1]
[1761321728282,0.66,189.4,189.36,0.1]
[1761321728484,10.87647521,189.38,189.36,0.1]
[1761321728672,47.85647521,189.38,189.36,0.1]
[1761321729071,11.53647521,189.37,189.36,0.1]
[1761321729284,14.79820791,189.37,189.36,0.1]
[1761321729520,10.87647521,189.36,189.35,0.1]
[1761321729714,14.79820791,189.36,189.35,0.1]
[1761321729893,20.07915425,189.36,189.35,0.1]
[1761321730569,23.34088695,189.36,189.35,0.1]
[1761321730768,24.90739741,189.36,189.35,0.1]
[1761321731566,33.75647521,189.34,189.33,0.1]
[1761321731774,78.82645107,189.34,189.33,0.1]
[1761321732067,84.76795524,189.34,189.33,0.1]
[1761321732476,79.48645107,189.34,189.33,0.1]
[1761321732691,84.76795524,189.34,189.33,0.1]
[1761321733193,79.48645107,189.34,189.33,0.1]
[1761321733396,70.73647521,189.34,189.33,0.1]
[1761321733584,79.48645107,189.34,189.33,0.1]
[1761321733970,48.51647521,189.34,189.33,0.1]
[1761321734177,56.60645107,189.34,189.33,0.1]
[1761321734378,47.85647521,189.34,189.33,0.1]
[1761321735490,10.87647521,189.34,189.33,6.07178312]
[1761321735698,10.87647521,189.34,189.33,14.16175898]
[1761321737014,10.03613413,189.51,189.33,19.27624094]
[1761321737015,10.87647521,189.41,189.33,19.27624094]
[1761321737211,18.96645107,189.37,189.33,5.38178312]
[1761321737506,10.87647521,189.35,189.33,5.38178312]
[1761321737712,47.87647521,189.35,189.33,5.38178312]
[1761321737911,19.62645107,189.34,189.33,0.1]
[1761321738285,11.53647521,189.34,189.33,0.1]
[1761321738489,19.62645107,189.34,189.33,0.1]
[1761321738914,24.90795524,189.34,189.33,0.1]
[1761321739210,10.87647521,189.33,189.32,0.1]
[1761321739382,19.61645107,189.33,189.32,0.1]
[1761321739995,11.52647521,189.33,189.32,0.1]
[1761321740182,19.61645107,189.33,189.32,0.1]
[1761321741015,24.89823419,189.33,189.32,0.1]
[1761321741311,19.61645107,189.33,189.32,0.1]
[1761321741516,56.65645107,189.33,189.32,0.1]
[1761321744008,49.06647521,189.33,189.32,0.1]
[1761321744180,57.15645107,189.33,189.32,0.1]
[1761321744584,62.43823419,189.33,189.32,0.1]
[1761321745483,57.15645107,189.33,189.32,0.1]
[1761321746410,56.00645107,189.33,189.32,0.1]
[1761321746910,47.89647521,189.33,189.32,6.07206211]
[1761321747512,47.89647521,189.33,189.32,14.16203797]
[1761321748903,37.04,189.35,189.32,27.36719326]
[1761321749211,37.04,189.35,189.34,8.08997586]
[1761321749212,10.87647521,189.35,189.34,8.08997586]
[1761321749606,10.87647521,189.35,189.34,0.69]
[1761321750505,10.87647521,189.35,189.34,5.97150417]
[1761321752232,10.87647521,189.35,189.33,5.28176903]
[1761321752522,47.89647521,189.34,189.33,5.28176903]
[1761321752700,10.87647521,189.33,189.32,0.1]
[1761321754520,10.87647521,189.33,189.32,5.38206211]
[1761321755125,10.87647521,189.33,189.32,14.16203797]
[1761321755297,10.87647521,189.37,189.32,27.36719326]
[1761321755499,10.87647521,189.35,189.33,8.77997586]
[1761321756025,10.87647521,189.35,189.34,0.69]
[1761321756903,10.87647521,189.35,189.34,5.97150417]
[1761321758013,10.87647521,189.35,189.34,14.06148003]
[1761321759118,37.02,189.36,189.34,14.06148003]
[1761321759328,47.89647521,189.36,189.35,8.77997586]
[1761321759521,10.87647521,189.35,189.34,5.28150417]
[1761321759703,10.87647521,189.36,189.34,5.28150417]
[1761321760025,10.87647521,189.36,189.35,0.69]
[1761321760622,10.87647521,189.36,189.34,5.28150417]
[1761321760922,10.87647521,189.36,189.34,5.97150417]
[1761321762019,10.87647521,189.36,189.34,0.69]
[1761321762403,10.87647521,189.36,189.34,8.77997586]
[1761321762719,8.08997586,189.4,189.34,8.77997586]
[1761321762926,47.87647521,189.39,189.35,8.08997586]
[1761321763121,47.87647521,189.39,189.35,8.77997586]
[1761321763311,47.87647521,189.39,189.35,0.69]
[1761321763508,48.52647521,189.39,189.35,0.69]
[1761321763723,56.61645107,189.39,189.35,0.69]
[1761321764022,55.96645107,189.39,189.35,0.69]
[1761321764207,47.87647521,189.39,189.36,5.28094634]
[1761321765220,47.87647521,189.39,189.36,0.69]
[1761321765428,47.87647521,189.39,189.35,18.48422006]
[1761321765723,47.87647521,189.39,189.36,0.69]
[1761321765924,10.87647521,189.37,189.32,0.1]
[1761321766103,10.87647521,189.37,189.33,13.37175898]
[1761321766104,47.87647521,189.37,189.33,13.37175898]
[1761321766506,47.87647521,189.37,189.34,8.77997586]
[1761321767324,47.87647521,189.37,189.35,5.28122524]
[1761321768122,55.96645107,189.37,189.35,5.28122524]
[1761321768425,8.08997586,189.36,189.32,0.1]
[1761321768729,47.87647521,189.35,189.32,5.38201256]
[1761321769026,47.87647521,189.35,189.32,6.07201256]
[1761321769219,47.87647521,189.35,189.32,19.27716785]
[1761321769423,47.87647521,189.35,189.33,0.69]
[1761321769625,47.87647521,189.35,189.32,19.27716785]
[1761321770728,36.98,189.35,189.33,8.77997586]
[1761321770907,10.87647521,189.34,189.33,8.77997586]
[1761321771230,10.87647521,189.34,189.33,8.08997586]
[1761321771610,8.08997586,189.4,189.33,8.77997586]
[1761321771809,8.08997586,189.4,189.32,18.58716785]
[1761321771810,10.87647521,189.41,189.37,8.08997586]
[1761321772046,22.88,189.43,189.38,8.08997586]
[1761321772047,10.87647521,189.39,189.38,8.08997586]
[1761321772234,5.09841816,189.49,189.39,18.48038438]
[1761321772406,0.72,189.53,189.46,8.08997586]
[1761321772606,0.72,189.53,189.48,8.08997586]
[1761321772849,37.02,189.52,189.48,8.77997586]
[1761321773121,8.08997586,189.51,189.46,8.77997586]
[1761321773308,8.80997586,189.51,189.46,8.08997586]
[1761321773503,8.80997586,189.51,189.45,8.08997586]
[1761321773504,0.72,189.5,189.45,8.08997586]
[1761321773723,37.04,189.49,189.45,8.08997586]
[1761321773904,37.04,189.49,189.46,8.77997586]
[1761321774111,10.87647521,189.48,189.45,8.08997586]
[1761321774310,10.87647521,189.48,189.45,5.27843758]
[1761321775235,10.87647521,189.48,189.45,8.08997586]
[1761321775416,10.87647521,189.48,189.45,8.77997586]
[1761321776236,10.87647521,189.48,189.46,5.27815897]
[1761321776827,11.58647521,189.48,189.46,5.27815897]
[1761321777214,10.87647521,189.48,189.46,5.27815897]
[1761321778025,10.87647521,189.48,189.44,23.78965593]
[1761321778229,10.87647521,189.48,189.44,24.49965593]
[1761321779226,10.87647521,189.48,189.44,19.18524576]
[1761321779423,10.87647521,189.48,189.44,24.49965593]
[1761321779938,10.87647521,189.48,189.44,11.30312638]
[1761321780232,10.87647521,189.46,189.43,5.27899487]
[1761321780440,10.87647521,189.44,189.43,5.27899487]
[1761321781433,10.87647521,189.44,189.43,5.98899487]
[1761321781638,10.87647521,189.44,189.43,5.27899487]
[1761321784723,10.87647521,189.44,189.42,5.27927357]
[1761321784929,10.87647521,189.44,189.42,10.59368374]
[1761321785155,10.87647521,189.44,189.42,5.27927357]
[1761321785526,10.87647521,189.44,189.42,10.59368374]
[1761321785749,10.87647521,189.44,189.42,11.30368374]
[1761321786042,10.87647521,189.44,189.42,10.59368374]
[1761321786740,10.87647521,189.44,189.41,28.15949089]
[1761321786934,11.58647521,189.44,189.41,28.15949089]
[1761321787243,10.87647521,189.44,189.41,41.35837162]
[1761321787622,10.87647521,189.44,189.41,42.06837162]
[1761321788123,11.58647521,189.44,189.41,41.35837162]
[1761321788320,10.87647521,189.44,189.41,42.06837162]
[1761321788537,10.87647521,189.44,189.41,47.38278179]
[1761321788749,10.87647521,189.44,189.41,41.35837162]
[1761321788940,10.87647521,189.44,189.41,46.67278179]
[1761321789150,10.87647521,189.44,189.41,41.35837162]
[1761321789523,10.87647521,189.44,189.41,42.06837162]
[1761321789929,10.87647521,189.44,189.41,5.27949089]
[1761321790126,16.19088538,189.42,189.39,5.28010982]
[1761321790349,10.87647521,189.4,189.39,5.28010982]
[1761321790530,10.87647521,189.4,189.36,0.71]
[1761321790531,47.85647521,189.4,189.37,5.28066747]
[1761321790731,10.87647521,189.38,189.37,5.28066747]
[1761321791332,16.90088538,189.38,189.35,5.28107654]
[1761321791541,28.15875202,189.44,189.35,5.28107654]
[1761321791542,10.87647521,189.36,189.35,5.28107654]
[1761321791849,47.85647521,189.36,189.35,5.28107654]
[1761321792048,47.85647521,189.36,189.33,5.28178312]
[1761321792222,47.85647521,189.36,189.33,5.99178312]
[1761321792619,47.85647521,189.36,189.33,24.51065111]
[1761321792929,47.85647521,189.36,189.34,6.02441017]
[1761321793127,47.85647521,189.36,189.34,0.71]
[1761321793739,47.85647521,189.36,189.33,23.80065111]
[1761321793938,47.85647521,189.36,189.33,24.51065111]
[1761321794139,47.85647521,189.36,189.34,0.71]
[1761321794748,47.85647521,189.36,189.34,2.79944864]
[1761321795230,47.85647521,189.36,189.35,0.71]
[1761321795727,47.85647521,189.36,189.34,2.08944864]
[1761321796150,47.85647521,189.36,189.35,0.71]
[1761321797049,47.85647521,189.36,189.35,5.99122524]
[1761321798242,47.85647521,189.36,189.35,5.28122524]
[1761321798550,47.85647521,189.36,189.35,5.99122524]
[1761321798734,47.85647521,189.36,189.35,5.28122524]
[1761321799856,47.85647521,189.36,189.34,5.28150417]
[1761321799857,48.55647521,189.36,189.34,5.28150417]
[1761321800057,48.55647521,189.36,189.35,0.7]
[1761321800058,47.85647521,189.36,189.35,0.7]
[1761321800356,47.85647521,189.36,189.35,2.78944864]
[1761321800932,47.85647521,189.36,189.34,5.28150417]
[1761321801133,11.57647521,189.35,189.34,5.28150417]
[1761321801855,10.87647521,189.34,189.33,5.28178312]
[1761321802258,10.87647521,189.35,189.33,21.27568958]
[1761321802457,10.87647521,189.35,189.34,2.78944864]
[1761321803134,36.98,189.36,189.34,2.78944864]
[1761321803337,10.87647521,189.36,189.35,2.78944864]
[1761321803554,10.87647521,189.36,189.35,0.7]
[1761321803738,10.87647521,189.36,189.35,2.78944864]
[1761321804140,10.87647521,189.36,189.35,8.07067388]
[1761321804644,0.7,189.42,189.35,21.27373699]
[1761321804953,152.15647521,189.39,189.38,2.08944864]
[1761321805160,47.85647521,189.39,189.38,2.08944864]
[1761321806065,47.85647521,189.39,189.38,8.06983727]
[1761321806269,10.87647521,189.42,189.38,21.27080886]
[1761321806445,5.27779835,189.48,189.41,2.08944864]
[1761321806446,11.57647521,189.47,189.41,2.08944864]
[1761321806642,10.87647521,189.47,189.43,2.08944864]
[1761321806868,10.87647521,189.48,189.46,2.08944864]
[1761321807074,36.98,189.49,189.46,2.08944864]
[1761321807294,10.87647521,189.47,189.44,2.08944864]
[1761321807577,36.98,189.46,189.43,2.08944864]
[1761321807860,10.87647521,189.45,189.43,2.08944864]
[1761321808068,10.87647521,189.45,189.44,5.27871621]
[1761321808268,10.87647521,189.45,189.44,7.36816485]
[1761321808445,10.87647521,189.45,189.44,8.06816485]
[1761321808649,10.87647521,189.45,189.44,7.36816485]
[1761321809178,10.87647521,189.45,189.42,5.27927357]
[1761321809347,10.87647521,189.45,189.42,20.56690613]
[1761321809537,10.87647521,189.45,189.42,21.26690613]
[1761321810362,10.87647521,189.45,189.42,20.56690613]
[1761321810884,10.87647521,189.46,189.42,18.47745749]
[1761321811172,10.87647521,189.46,189.42,21.26690613]
[1761321811674,10.87647521,189.46,189.42,20.56690613]
[1761321811858,10.87647521,189.46,189.42,21.26690613]
[1761321812950,2.08944864,189.45,189.42,5.27927357]
[1761321813173,10.87647521,189.43,189.42,5.27927357]
[1761321814460,10.87647521,189.43,189.41,5.27955229]
[1761321815054,10.87647521,189.41,189.37,5.28066747]
[1761321815250,12.96592385,189.39,189.33,5.28178312]
[1761321815460,2.08944864,189.38,189.33,5.28178312]
[1761321815693,10.87647521,189.36,189.33,5.28178312]
[1761321816056,10.87647521,189.36,189.33,19.18624094]
[1761321816850,10.87647521,189.36,189.33,18.48624094]
[1761321817050,10.87647521,189.36,189.33,19.18624094]
[1761321818444,10.87647521,189.36,189.33,18.48624094]
[1761321819849,11.57647521,189.36,189.33,18.48624094]
[1761321820957,10.87647521,189.36,189.33,18.48624094]
[1761321821286,10.87647521,189.36,189.33,21.27568958]
[1761321821450,10.87647521,189.36,189.34,2.78944864]
[1761321821650,10.87647521,189.36,189.33,21.27568958]
[1761321822852,10.87647521,189.36,189.33,19.18624094]
[1761321823165,10.87647521,189.36,189.33,5.28178312]
[1761321823366,10.87647521,189.34,189.33,5.28178312]
[1761321823552,49.94592385,189.34,189.32,5.3820417]
[1761321823874,10.87647521,189.33,189.32,5.3820417]
[1761321825179,10.87647521,189.33,189.32,6.0820417]
[1761321825367,10.87647521,189.33,189.32,8.17149034]
[1761321826667,10.87647521,189.33,189.32,7.47149034]
[1761321826976,10.87647521,189.33,189.32,5.3820417]
[1761321827651,10.87647521,189.33,189.32,6.0820417]
[1761321828478,10.87647521,189.33,189.32,5.3820417]
[1761321829671,10.87647521,189.34,189.32,5.3820417]
[1761321830378,0.7,189.33,189.32,5.3820417]
[1761321830681,10.87647521,189.34,189.32,5.3820417]
[1761321830880,10.87647521,189.34,189.32,6.0420417]
[1761321831089,10.87647521,189.34,189.32,7.47149034]
[1761321831285,10.87647521,189.34,189.32,5.3820417]
[1761321832867,11.57647521,189.34,189.32,5.3820417]
[1761321833180,0.7,189.34,189.32,5.3820417]
[1761321833677,11.57647521,189.34,189.32,5.3820417]
[1761321834469,0.7,189.33,189.32,5.3820417]
[1761321834654,11.57647521,189.34,189.32,5.3820417]
[1761321835759,10.87647521,189.34,189.32,5.3820417]
[1761321836794,11.53647521,189.34,189.32,5.3820417]
[1761321840892,10.87647521,189.33,189.32,5.3820417]
[1761321841099,47.85647521,189.33,189.32,5.3820417]
[1761321845389,51.7824108,189.33,189.32,0.1]
[1761321845585,48.51647521,189.33,189.32,0.1]
[1761321846699,48.51647521,189.33,189.32,5.38206211]
[1761321848789,51.7824108,189.33,189.32,5.38206211]
[1761321849283,51.7824108,189.33,189.32,0.1]
[1761321851109,10.87647521,189.34,189.32,0.1]
[1761321851279,47.85647521,189.33,189.32,9.3079977]
[1761321851479,47.85647521,189.33,189.32,5.38206211]
[1761321852290,47.85647521,189.33,189.32,6.04206211]
[1761321852806,47.85647521,189.33,189.32,8.6479977]
[1761321853113,47.85647521,189.33,189.32,9.3079977]
[1761321853792,10.87647521,189.33,189.32,9.3079977]
[1761321854095,10.87647521,189.33,189.32,6.04206211]
[1761321854302,10.87647521,189.33,189.32,9.3079977]
[1761321854686,10.87647521,189.33,189.32,6.04206211]
[1761321854892,10.87647521,189.33,189.32,9.3079977]
[1761321855999,10.87647521,189.36,189.32,22.51315299]
[1761321856191,10.87647521,189.38,189.35,3.26593559]
[1761321856497,10.87647521,189.38,189.37,3.26593559]
[1761321856700,0.66,189.45,189.37,3.26593559]
[1761321857017,47.85647521,189.44,189.39,18.48038438]
[1761321857189,47.85647521,189.44,189.41,3.26593559]
[1761321858213,48.51647521,189.44,189.41,3.26593559]
[1761321858513,0.66,189.43,189.4,3.26593559]
[1761321859011,10.87647521,189.42,189.39,5.28010982]
[1761321859215,10.87647521,189.4,189.39,5.28010982]
[1761321859713,10.87647521,189.4,189.39,5.96010982]
[1761321859914,10.87647521,189.4,189.39,9.22604541]
[1761321860308,0.67,189.46,189.39,22.42631997]
[1761321860309,10.87647521,189.42,189.39,22.42631997]
[1761321860518,10.87647521,189.42,189.41,3.26593559]
[1761321861012,10.87647521,189.42,189.41,9.22548788]
[1761321862900,10.87647521,189.42,189.41,5.95955229]
[1761321863101,10.87647521,189.42,189.41,3.26593559]
[1761321863309,10.87647521,189.42,189.41,3.94593559]
[1761321865203,10.87647521,189.42,189.41,9.22548788]
[1761321865611,10.87647521,189.42,189.41,5.95955229]
[1761321865815,10.87647521,189.42,189.41,9.22548788]
[1761321866319,0.67,189.48,189.41,22.42436861]
[1761321866524,47.83647521,189.47,189.44,3.26593559]
[1761321867230,47.83647521,189.47,189.45,5.27843758]
[1761321869298,47.83647521,189.47,189.46,3.26593559]
[1761321869504,47.83647521,189.47,189.46,3.94593559]
[1761321871127,36.96,189.47,189.46,9.22409456]
[1761321871311,10.87647521,189.49,189.46,22.419492]
[1761321871510,10.87647521,189.49,189.48,3.26593559]
[1761321872632,10.87647521,189.49,189.48,5.27760185]
[1761321872817,10.87647521,189.49,189.48,8.54353744]
[1761321874705,10.87647521,189.49,189.48,5.27760185]
[1761321874926,10.87647521,189.49,189.48,8.54353744]
[1761321875991,36.96,189.5,189.48,8.54353744]
[1761321876119,10.87647521,189.49,189.48,8.54353744]
[1761321876737,10.87647521,189.49,189.48,5.27760185]
[1761321876915,10.87647521,189.49,189.48,8.54353744]
[1761321877321,11.54647521,189.49,189.48,5.27760185]
[1761321877736,10.87647521,189.49,189.48,5.27760185]
[1761321878434,11.54647521,189.49,189.47,5.2778804]
[1761321878620,48.50647521,189.48,189.47,5.2778804]
[1761321878821,47.83647521,189.48,189.47,5.2778804]
[1761321879425,36.96,189.48,189.47,5.2778804]
[1761321880315,47.83647521,189.48,189.47,8.54381599]
[1761321880509,47.83647521,189.48,189.47,5.2778804]
[1761321880728,47.83647521,189.48,189.47,8.54381599]
[1761321881736,47.83647521,189.48,189.47,9.22381599]
[1761321882136,47.83647521,189.48,189.47,8.54381599]
[1761321886741,47.83647521,189.48,189.47,5.2778804]
[1761321890551,47.83647521,189.48,189.44,26.3935515]
[1761321890724,48.54647521,189.48,189.45,3.26593559]
[1761321890924,47.83647521,189.48,189.45,3.94593559]
[1761321891226,0.71,189.47,189.46,22.88]
[1761321891539,11.58647521,189.47,189.43,21.74241765]
[1761321891858,11.58647521,189.47,189.46,22.88]
[1761321892038,48.52647521,189.47,189.46,22.88]
[1761321892228,10.87647521,189.46,189.43,19.15648206]
[1761321892419,36.94,189.45,189.43,19.15648206]
[1761321892620,36.94,189.45,189.43,18.47648206]
[1761321892827,11.58647521,189.44,189.43,5.27899487]
[1761321894423,10.87647521,189.44,189.43,9.22493046]
[1761321894627,36.94,189.44,189.43,9.22493046]
[1761321894848,36.94,189.44,189.43,22.42241765]
[1761321896153,10.87647521,189.51,189.43,22.42241765]
[1761321896460,37.65,189.5,189.46,3.26593559]
[1761321896759,10.87647521,189.49,189.48,3.26593559]
[1761321897329,10.87647521,189.49,189.47,9.25381599]
[1761321898730,10.87647521,189.49,189.47,8.074321]
[1761321898944,10.87647521,189.49,189.48,2.7964406]
[1761321899145,36.94,189.5,189.48,2.7964406]
[1761321899350,47.81647521,189.5,189.49,2.7964406]
[1761321899550,47.81647521,189.5,189.49,2.0864406]
[1761321900246,47.81647521,189.5,189.49,5.27732334]
[1761321900455,47.81647521,189.5,189.49,7.36376394]
[1761321901353,47.81647521,189.5,189.49,5.27732334]
[1761321901554,47.81647521,189.5,189.47,5.98781658]
[1761321901761,47.81647521,189.5,189.49,2.0864406]
[1761321902055,47.81647521,189.5,189.48,2.0864406]
[1761321902358,47.81647521,189.5,189.49,5.27732334]
[1761321903152,47.81647521,189.5,189.45,13.19600686]
[1761321903457,0.72,189.49,189.45,15.28244746]
[1761321903658,10.87647521,189.47,189.45,13.19600686]
[1761321903854,10.87647521,189.45,189.44,5.27871621]
[1761321904045,11.59647521,189.45,189.44,5.27871621]
[1761321904353,11.59647521,189.45,189.43,5.27899487]
[1761321904667,47.81647521,189.44,189.43,5.27899487]
[1761321904837,10.87647521,189.43,189.4,13.1995144]
[1761321905039,47.81647521,189.42,189.41,5.27955229]
[1761321906058,47.81647521,189.42,189.28,1.99999999]
[1761321906059,10.87647521,189.41,189.35,0.71]
[1761321906230,10.87647521,189.39,189.36,5.28094634]
[1761321906428,36.94,189.38,189.36,5.28094634]
[1761321906651,36.94,189.38,189.36,5.99094634]
[1761321907058,10.87647521,189.37,189.36,5.28094634]
[1761321907841,11.59647521,189.37,189.33,7.36797789]
[1761321908042,10.87647521,189.35,189.33,5.28153729]
[1761321908353,10.87647521,189.33,189.32,5.38203723]
[1761321908548,47.81647521,189.33,189.32,5.38203723]
[1761321909671,4.37798723,189.44,189.35,22.88]
[1761321909861,107.47836637,189.46,189.35,22.88]
[1761321909862,12.96291581,189.42,189.37,2.0864406]
[1761321910062,10.87647521,189.4,189.37,2.0864406]
[1761321910236,10.87647521,189.4,189.38,5.28038863]
[1761321912271,47.81647521,189.39,189.38,5.28038863]
[1761321912642,47.81647521,189.39,189.38,5.99038863]
[1761321914243,47.81647521,189.39,189.37,5.28061063]
[1761321914444,47.81647521,189.39,189.34,5.28150417]
[1761321914445,13.68291581,189.38,189.34,5.28150417]
[1761321914684,10.87647521,189.36,189.34,0.71]
[1761321914865,10.87647521,189.36,189.34,23.59]
[1761321914866,36.94,189.35,189.34,23.59]
[1761321915071,10.87647521,189.34,189.33,5.28163564]
[1761321917274,10.87647521,189.34,189.32,5.38200161]
[1761321917775,36.94,189.33,189.32,6.09200161]
[1761321917980,36.94,189.33,189.32,0.1]
[1761321918277,48.53647521,189.33,189.32,0.1]
[1761321918475,50.62291581,189.33,189.32,0.1]
[1761321918858,50.62291581,189.33,189.25,0.1]
[1761321918859,2.0864406,189.27,189.25,0.1]
[1761321919058,49.90291581,189.26,189.25,0.1]
[1761321919571,50.60291581,189.26,189.25,0.1]
[1761321920677,48.51647521,189.26,189.25,0.1]
[1761321920855,50.60291581,189.26,189.25,0.1]
[1761321921052,48.51647521,189.26,189.25,0.1]
[1761321921251,50.60291581,189.26,189.25,0.1]
[1761321921654,48.51647521,189.26,189.25,0.1]
[1761321921970,48.51647521,189.26,189.2,5.38539755]
[1761321921971,50.60291581,189.26,189.2,5.38539755]
[1761321922186,2.0864406,189.23,189.2,5.38539755]
[1761321922474,10.87647521,189.21,189.2,21.3553688]
[1761321922651,10.87647521,189.21,189.2,20.6853688]
[1761321922853,36.96,189.21,189.2,20.6853688]
[1761321923068,36.96,189.24,189.2,20.6853688]
[1761321923250,47.83647521,189.24,189.23,24.9664406]
[1761321923957,47.83647521,189.24,189.23,25.6364406]
[1761321924655,36.96,189.24,189.23,30.92101492]
[1761321925066,36.96,189.24,189.23,30.25101492]
[1761321925352,36.96,189.25,189.23,44.13245073]
[1761321925679,36.96,189.25,189.23,28.16457432]
[1761321925870,36.96,189.25,189.23,30.92101492]
[1761321926046,36.96,189.25,189.24,2.7564406]
[1761321926680,36.96,189.25,189.24,8.04073567]
[1761321927377,36.96,189.26,189.24,21.25147335]
[1761321927557,36.96,189.26,189.25,2.7564406]
[1761321927752,36.96,189.26,189.24,18.49503275]
[1761321928062,36.96,189.26,189.24,21.25147335]
[1761321928569,36.96,189.26,189.24,20.58147335]
[1761321928773,10.87647521,189.25,189.23,5.28454826]
[1761321928956,47.83647521,189.24,189.23,5.28454826]
[1761321929152,48.53647521,189.24,189.21,5.28488776]
[1761321929361,47.83647521,189.24,189.21,5.28488776]
[1761321929656,13.66291581,189.23,189.21,5.28488776]
[1761321929864,39.7464406,189.22,189.21,5.28488776]
[1761321930173,36.96,189.22,189.21,5.28488776]
[1761321930357,37.66,189.22,189.21,5.28488776]
[1761321930559,10.87647521,189.21,189.2,0.1]
[1761321930762,13.66291581,189.21,189.2,0.1]
[1761321932452,11.57647521,189.21,189.2,0.1]
[1761321932657,11.57647521,189.21,189.2,5.38541226]
[1761321932658,47.83647521,189.21,189.2,5.38541226]
[1761321932882,48.53647521,189.21,189.2,5.38541226]
[1761321933063,48.53647521,189.21,189.2,0.1]